bitfinex-derivatives/quotes_ETHF0:USTF0_20230903
["timestamp","ask_amount","ask_price","bid_price","bid_amount"]
[1693728452419,9.90611022,1637.2,1637.1,14.10612424]
[1693728453523,9.90611022,1637.2,1637.1,17.31531821]
[1693728454318,9.90611022,1637.2,1637.1,14.10612424]
[1693728455324,9.90611022,1637.2,1637.1,17.31531821]
[1693728466031,2.2456958,1637.2,1637.1,20.05448173]
[1693728466330,0.94527735,1637.2,1637.1,20.85678022]
[1693728466629,0.02364951,1637.2,1637.1,20.85678022]
[1693728469034,0.02364951,1637.2,1637.1,20.05192462]
[1693728469234,0.9117228,1637.3,1637.1,20.05192462]
[1693728469435,0.63810768,1637.3,1637.2,15.27514655]
[1693728469636,0.63810768,1637.3,1637.2,17.54508303]
[1693728469833,0.63810768,1637.3,1637.2,19.94975057]
[1693728470235,0.66179658,1637.3,1637.2,19.94975057]
[1693728481949,0.0236889,1637.3,1637.2,19.94975057]
[1693728482241,1.11557675,1637.4,1637.2,19.94975057]
[1693728482442,1.11557675,1637.4,1637.3,16.68651136]
[1693728483235,1.77734657,1637.4,1637.3,16.68651136]
[1693728483436,3.72748467,1637.4,1637.3,16.68651136]
[1693728483847,1.77734657,1637.4,1637.3,16.68651136]
[1693728490144,3.72748467,1637.4,1637.3,16.68651136]
[1693728490340,6.12960641,1637.4,1637.3,16.68651136]
[1693728491149,6.12960641,1637.4,1637.3,13.81934784]
[1693728493245,6.12960641,1637.4,1637.3,16.68651136]
[1693728493453,6.12964691,1637.4,1637.3,16.68624631]
[1693728494548,6.12964691,1637.4,1637.3,13.81908279]
[1693728494957,6.12964691,1637.4,1637.3,16.68624631]
[1693728495750,6.12964691,1637.4,1637.3,13.81908279]
[1693728496255,6.12964691,1637.4,1637.3,16.68624631]
[1693728497054,16.12964691,1637.4,1637.3,13.81908279]
[1693728497443,21.88229761,1637.4,1637.3,13.54994678]
[1693728498157,16.12964691,1637.4,1637.3,13.54994678]
[1693728498356,16.12964691,1637.4,1637.3,13.35964277]
[1693728501658,16.12964691,1637.4,1637.3,16.41628185]
[1693728502360,16.12964691,1637.4,1637.3,16.41628361]
[1693728502653,16.12964691,1637.4,1637.3,13.35964277]
[1693728502858,16.12964691,1637.4,1637.3,16.41628721]
[1693728503468,13.72748467,1637.4,1637.3,11.75791998]
[1693728503654,13.72748467,1637.4,1637.3,14.81456615]
[1693728503858,16.13032954,1637.4,1637.3,16.41674478]
[1693728506757,16.93127783,1637.4,1637.3,16.41674478]
[1693728507762,16.93127783,1637.4,1637.3,18.82001273]
[1693728507957,22.68392853,1637.4,1637.3,18.82001273]
[1693728509766,22.68392853,1637.4,1637.3,17.2178341]
[1693728511362,22.0458501,1637.4,1637.3,17.1158341]
[1693728511664,16.2931994,1637.4,1637.3,16.74216543]
[1693728513661,17.09414769,1637.4,1637.3,12.68206537]
[1693728513968,22.84679839,1637.4,1637.3,11.88323023]
[1693728514363,22.84679839,1637.4,1637.3,8.82658406]
[1693728515863,23.48490607,1637.4,1637.3,8.82658406]
[1693728520171,23.48490607,1637.4,1637.3,7.22215125]
[1693728529074,23.48490607,1637.4,1637.3,6.74490233]
[1693728530177,23.48490607,1637.4,1637.3,6.26916215]
[1693728531076,23.48490607,1637.4,1637.3,9.32351215]
[1693728531279,23.48490607,1637.4,1637.3,9.17897856]
[1693728533178,23.48490607,1637.4,1637.3,5.99052856]
[1693728533377,29.59324607,1637.4,1637.3,3.1541522]
[1693728536985,29.59324607,1637.4,1637.3,3.08820792]
[1693728538685,29.59324607,1637.4,1637.3,6.04731992]
[1693728538883,29.59324607,1637.4,1637.3,5.68267675]
[1693728539394,29.59324607,1637.4,1637.3,4.7123589]
[1693728540183,29.59324607,1637.4,1637.3,7.7667089]
[1693728541180,29.59324607,1637.4,1637.3,7.2682441]
[1693728542678,10.0,1637.2,1637.1,1.09310732]
[1693728542880,22.70372999,1637.2,1637.1,2.3625999]
[1693728543083,21.75190118,1637.2,1637.1,4.7605399]
[1693728543285,21.77651251,1637.2,1637.1,4.7605399]
[1693728543588,27.52916321,1637.2,1637.1,4.7605399]
[1693728543780,28.16738987,1637.2,1637.1,6.10933]
[1693728544189,22.41473917,1637.2,1637.1,9.16405]
[1693728545688,26.41802751,1637.2,1637.1,9.16405]
[1693728545888,32.17067821,1637.2,1637.1,9.16405]
[1693728546092,26.41802751,1637.2,1637.1,9.16405]
[1693728546793,32.17067821,1637.2,1637.1,9.16405]
[1693728547687,26.41802751,1637.2,1637.1,9.16405]
[1693728548284,32.17067821,1637.2,1637.1,9.16405]
[1693728548591,26.41802751,1637.2,1637.1,9.16405]
[1693728549694,32.17067821,1637.2,1637.1,9.16405]
[1693728549897,26.41802751,1637.2,1637.1,9.16405]
[1693728550097,38.61459401,1637.2,1637.1,9.16405]
[1693728550290,26.41802751,1637.2,1637.1,9.16405]
[1693728550485,25.46928917,1637.2,1637.0,2.4426046]
[1693728550695,10.0,1637.0,1636.9,8.25805]
[1693728550891,21.26070942,1637.0,1636.9,14.30601]
[1693728551090,33.45727592,1637.0,1636.9,9.10811]
[1693728551298,33.48184057,1637.0,1636.9,9.10811]
[1693728553201,30.28106925,1637.0,1636.9,9.10811]
[1693728553501,32.50894655,1637.0,1636.9,9.10811]
[1693728554189,33.1472415,1637.0,1636.9,9.10811]
[1693728554598,33.1472415,1637.0,1636.9,8.941488]
[1693728557101,33.1472415,1637.0,1636.9,7.39462049]
[1693728557496,32.34603702,1637.0,1636.9,7.39462049]
[1693728557698,29.94743243,1637.0,1636.9,7.39462049]
[1693728558199,32.34611619,1637.0,1636.9,7.39462049]
[1693728558400,32.34588893,1637.0,1636.9,7.31594131]
[1693728560806,32.34588893,1637.0,1636.9,6.84374131]
[1693728561801,32.34588893,1637.0,1636.9,6.20184131]
[1693728562405,32.84080036,1637.0,1636.9,6.20184131]
[1693728563601,32.84080036,1637.0,1636.9,9.14803581]
[1693728563808,32.84080036,1637.0,1636.9,8.88446551]
[1693728564001,32.84080036,1637.0,1636.9,8.45571041]
[1693728567917,38.34480036,1637.0,1636.9,8.45571041]
[1693728571213,38.34480036,1637.0,1636.9,8.14952211]
[1693728571417,38.34480036,1637.0,1636.9,7.99051874]
[1693728574719,38.34480036,1637.0,1636.9,7.83051874]
[1693728577813,42.20105293,1637.0,1636.8,1.59716673]
[1693728578116,10.0,1636.8,1636.7,4.77002394]
[1693728578325,30.27811496,1636.8,1636.7,4.77002394]
[1693728579023,30.27811496,1636.8,1636.7,10.88094394]
[1693728579725,30.9164743,1636.8,1636.7,10.88094394]
[1693728581531,30.9164743,1636.8,1636.7,10.47496434]
[1693728581827,33.31553413,1636.8,1636.7,10.38076278]
[1693728582728,33.31647748,1636.8,1636.7,10.38076278]
[1693728583833,31.716192,1636.8,1636.7,10.38076278]
[1693728584933,31.716192,1636.8,1636.7,11.98177998]
[1693728588234,32.51694124,1636.8,1636.7,11.52017425]
[1693728589536,32.51694124,1636.8,1636.7,10.7673972]
[1693728590142,33.42593762,1636.8,1636.7,10.7673972]
[1693728590327,33.45043369,1636.8,1636.7,13.8228572]
[1693728590728,33.92844511,1636.8,1636.7,13.8228572]
[1693728591834,33.92844511,1636.8,1636.7,6.11092]
[1693728592039,10.0,1636.4,1636.3,17.797543]
[1693728592236,21.008,1636.4,1636.3,26.7788436]
[1693728592441,21.008,1636.4,1636.3,15.25378008]
[1693728592643,21.008,1636.4,1636.3,27.47862008]
[1693728594047,22.9581381,1636.4,1636.3,27.47862008]
[1693728595442,21.008,1636.4,1636.3,27.47862008]
[1693728595636,22.9581381,1636.4,1636.3,27.47862008]
[1693728599348,22.9581381,1636.4,1636.3,24.61145656]
[1693728599644,22.9581381,1636.4,1636.3,22.34152008]
[1693728599841,22.9581381,1636.4,1636.3,20.87977792]
[1693728600050,24.5604573,1636.4,1636.3,20.87977792]
[1693728600244,35.78509203,1636.4,1636.3,18.33897708]
[1693728602944,36.58625163,1636.4,1636.3,4.98218401]
[1693728603243,10.0,1636.2,1636.1,55.90666]
[1693728603440,19.05661549,1636.2,1636.1,32.93693182]
[1693728603645,19.05661549,1636.2,1636.1,31.22673618]
[1693728603841,30.28125022,1636.2,1636.1,30.96981145]
[1693728604049,30.28125022,1636.2,1636.1,12.22621]
[1693728604755,30.28125022,1636.2,1636.1,9.16974]
[1693728605350,30.30474519,1636.2,1636.1,11.74304203]
[1693728605851,30.94330562,1636.2,1636.1,11.64442253]
[1693728606851,30.94330562,1636.2,1636.1,11.16252253]
[1693728607156,30.94330562,1636.2,1636.1,8.09252253]
[1693728607353,30.94330562,1636.2,1636.1,11.14910253]
[1693728607952,30.94330562,1636.2,1636.1,10.65970712]
[1693728608153,29.40192823,1636.2,1636.1,10.65970712]
[1693728608655,31.00440562,1636.2,1636.1,10.65970712]
[1693728608849,29.40192823,1636.2,1636.1,10.65970712]
[1693728611857,0.0611,1636.1,1636.0,3.05662]
[1693728612052,15.3161,1636.1,1636.0,3.05662]
[1693728612354,26.54073473,1636.1,1636.0,12.22693]
[1693728613451,26.54073473,1636.1,1636.0,11.61284605]
[1693728617059,26.54073473,1636.1,1636.0,11.30084693]
[1693728618161,26.54073473,1636.1,1636.0,10.82084693]
[1693728619756,26.54073473,1636.1,1636.0,10.32531891]
[1693728620362,26.56424013,1636.1,1636.0,10.32531891]
[1693728620657,27.48468257,1636.1,1636.0,10.32531891]
[1693728622863,27.48468257,1636.1,1636.0,13.38398936]
[1693728624060,27.48468257,1636.1,1636.0,12.27669837]
[1693728624362,27.48468257,1636.1,1636.0,14.69723487]
[1693728624954,27.48468257,1636.1,1636.0,14.21723487]
[1693728626369,27.48468257,1636.1,1636.0,13.86583487]
[1693728626566,27.48468257,1636.1,1636.0,13.03713487]
[1693728628463,27.48468257,1636.1,1636.0,12.22898045]
[1693728628662,27.48468257,1636.1,1636.0,15.28575045]
[1693728631069,27.48468257,1636.1,1636.0,14.80575045]
[1693728631867,10.0,1636.0,1635.9,6.2572891]
[1693728632061,28.67877283,1636.0,1635.9,6.2572891]
[1693728632266,28.67877283,1636.0,1635.9,15.4281391]
[1693728632467,29.31738794,1636.0,1635.9,15.4281391]
[1693728634964,10.0,1635.8,1635.7,8.82260594]
[1693728635164,17.4541381,1635.8,1635.7,4.00060594]
[1693728635366,17.47848448,1635.8,1635.6,7.05794594]
[1693728635575,23.19911921,1635.8,1635.7,12.22904]
[1693728635772,28.70311921,1635.8,1635.7,12.22904]
[1693728636170,28.70311921,1635.8,1635.7,11.73494577]
[1693728636569,28.70311921,1635.8,1635.7,11.33494577]
[1693728638470,28.70311921,1635.8,1635.7,15.33555171]
[1693728639475,28.67877283,1635.8,1635.7,9.17178]
[1693728639665,28.67877283,1635.8,1635.7,12.22904]
[1693728640370,28.70309766,1635.8,1635.7,12.22904]
[1693728641179,28.70309766,1635.8,1635.7,11.82904]
[1693728641876,10.0,1635.6,1635.4,30.7514664]
[1693728642079,7.4541381,1635.5,1635.4,30.7514664]
[1693728642273,7.4541381,1635.5,1635.4,28.07189658]
[1693728642674,5.504,1635.5,1635.4,28.07189658]
[1693728643477,7.4541381,1635.5,1635.4,28.07189658]
[1693728643978,5.504,1635.5,1635.4,28.07189658]
[1693728644179,7.4541381,1635.5,1635.4,28.07189658]
[1693728644680,5.504,1635.5,1635.4,28.07189658]
[1693728644881,7.4541381,1635.5,1635.4,28.07189658]
[1693728647476,5.504,1635.5,1635.4,28.07189658]
[1693728649077,7.4541381,1635.5,1635.4,28.07189658]
[1693728649880,7.4541381,1635.5,1635.4,25.20473306]
[1693728650278,12.24253614,1635.5,1635.4,25.20473306]
[1693728650474,17.27853614,1635.5,1635.4,25.20473306]
[1693728650683,27.77860067,1635.5,1635.4,25.20473306]
[1693728651072,27.77860067,1635.5,1635.4,23.79722185]
[1693728651274,27.77860067,1635.5,1635.4,22.83745491]
[1693728651882,27.77860067,1635.5,1635.4,25.89688704]
[1693728652083,27.77860067,1635.5,1635.4,25.49688704]
[1693728652281,29.19786232,1635.5,1635.4,25.49688704]
[1693728652674,29.19786232,1635.5,1635.4,6.50089853]
[1693728653079,29.83665327,1635.5,1635.4,6.50089853]
[1693728655282,10.0611,1635.3,1635.2,0.46500559]
[1693728655586,17.5152381,1635.3,1634.9,27.1145]
[1693728655886,17.5152381,1635.3,1634.9,29.38443648]
[1693728655887,5.504,1635.0,1634.9,29.38443648]
[1693728656087,3.36214136,1635.0,1634.9,27.4221]
[1693728659682,5.31227946,1635.0,1634.9,27.4221]
[1693728659890,3.36214136,1635.0,1634.9,27.4221]
[1693728663191,3.85558044,1635.0,1634.9,27.4221]
[1693728663987,20.09548131,1635.2,1634.9,32.9261]
[1693728664194,20.09548131,1635.2,1635.0,3.99929916]
[1693728664498,5.52826083,1635.1,1635.0,3.99929916]
[1693728664988,5.52826083,1635.1,1635.0,9.13639916]
[1693728665391,7.47839893,1635.1,1635.0,6.86646268]
[1693728665691,10.30426083,1635.1,1635.0,6.86646268]
[1693728667896,12.25439893,1635.1,1635.0,6.86646268]
[1693728668395,10.30426083,1635.1,1635.0,6.86646268]
[1693728668595,12.25439893,1635.1,1635.0,3.99929916]
[1693728669996,12.31549893,1635.1,1635.0,3.99929916]
[1693728671196,12.31549893,1635.1,1635.0,6.86646268]
[1693728672204,12.31549893,1635.1,1635.0,22.15956268]
[1693728675205,12.31549893,1635.1,1635.0,25.21934589]
[1693728675401,12.31549893,1635.1,1635.0,22.35218237]
[1693728675601,12.31549893,1635.1,1635.0,18.35288321]
[1693728675800,12.31549893,1635.1,1635.0,25.21934589]
[1693728676406,12.2912381,1635.1,1635.0,25.21934589]
[1693728677402,12.31549818,1635.1,1635.0,25.21934589]
[1693728679707,22.85879472,1635.1,1635.0,25.21934589]
[1693728680009,22.85879472,1635.1,1635.0,22.35218237]
[1693728683310,12.31549818,1635.1,1635.0,22.35218237]
[1693728683808,22.85879472,1635.1,1635.0,22.35218237]
[1693728684511,12.31549818,1635.1,1635.0,22.35218237]
[1693728684712,12.31549818,1635.1,1635.0,25.21934589]
[1693728685314,22.85879472,1635.1,1635.0,25.21934589]
[1693728685611,22.85879472,1635.1,1635.0,22.35218237]
[1693728685811,22.85879472,1635.1,1635.0,25.21934589]
[1693728686010,22.85879472,1635.1,1635.0,21.22004673]
[1693728686211,12.31549818,1635.1,1635.0,21.22004673]
[1693728686608,22.85879472,1635.1,1635.0,18.35288321]
[1693728687114,12.31549818,1635.1,1635.0,18.35288321]
[1693728687614,12.31549818,1635.1,1635.0,21.22004673]
[1693728687815,12.31549818,1635.1,1635.0,18.35288321]
[1693728688419,22.85879472,1635.1,1635.0,18.35288321]
[1693728690117,22.85879472,1635.1,1635.0,21.22004673]
[1693728690818,22.85879472,1635.1,1635.0,18.35288321]
[1693728691015,22.86269496,1635.1,1635.0,18.35288321]
[1693728691318,22.86269496,1635.1,1635.0,21.22004673]
[1693728691914,22.86269496,1635.1,1635.0,18.35288321]
[1693728697521,22.86269496,1635.1,1635.0,21.22004673]
[1693728699024,22.86269496,1635.1,1635.0,26.02301731]
[1693728700325,22.86269496,1635.1,1635.0,23.15585379]
[1693728702126,22.86269496,1635.1,1635.0,26.02301731]
[1693728703828,22.86269496,1635.1,1635.0,23.15585379]
[1693728704629,22.86269496,1635.1,1635.0,26.02301731]
[1693728708925,20.91255686,1635.1,1635.0,26.02301731]
[1693728710431,22.86269496,1635.1,1635.0,26.02301731]
[1693728710732,22.86269496,1635.1,1635.0,23.15585379]
[1693728711136,22.86269496,1635.1,1635.0,26.02301731]
[1693728711836,22.86269496,1635.1,1635.0,23.15585379]
[1693728712340,22.86269496,1635.1,1635.0,26.02301731]
[1693728712528,12.31549818,1635.1,1635.0,26.02301731]
[1693728713531,22.8662937,1635.1,1635.0,26.02301731]
[1693728714343,22.8662937,1635.1,1635.0,23.15585379]
[1693728715234,22.8662937,1635.1,1635.0,18.35288321]
[1693728716140,12.31549818,1635.1,1635.0,18.35288321]
[1693728716343,22.8657959,1635.1,1635.0,23.15585379]
[1693728720747,22.8657959,1635.1,1635.0,23.1708533]
[1693728722750,22.8657959,1635.1,1635.0,18.35300331]
[1693728723351,24.46988715,1635.1,1635.0,18.8210217]
[1693728723541,25.10882861,1635.1,1635.0,17.95102169]
[1693728723742,25.10882861,1635.1,1635.0,16.84252169]
[1693728724945,25.10882861,1635.1,1635.0,18.51114169]
[1693728725149,25.10882861,1635.1,1635.0,18.43614169]
[1693728725950,25.10882861,1635.1,1635.0,14.42094455]
[1693728726250,25.10882861,1635.1,1635.0,17.96072211]
[1693728726446,25.10882861,1635.1,1635.0,17.15563547]
[1693728728951,23.50473736,1635.1,1635.0,17.15563547]
[1693728729146,25.10882861,1635.1,1635.0,17.15563547]
[1693728729556,23.50473736,1635.1,1635.0,17.15563547]
[1693728731962,10.0612,1635.0,1634.9,4.01519714]
[1693728732148,20.8195,1635.0,1634.9,16.25023714]
[1693728732353,31.39263534,1635.0,1634.9,16.25023714]
[1693728732857,31.39263534,1635.0,1634.9,15.7601384]
[1693728735162,31.39263534,1635.0,1634.9,15.2816384]
[1693728735363,31.39263534,1635.0,1634.7,4.81784999]
[1693728735364,10.0612,1634.8,1634.7,8.69622561]
[1693728735659,15.5652,1634.8,1634.7,12.23684]
[1693728735963,26.11549772,1634.8,1634.7,11.76684]
[1693728736154,26.11549772,1634.8,1634.7,8.70763]
[1693728736758,26.75455847,1634.8,1634.7,8.70763]
[1693728737566,29.81356847,1634.8,1634.7,8.70763]
[1693728738263,32.87257847,1634.8,1634.7,8.70763]
[1693728738468,32.87257847,1634.8,1634.7,11.111968]
[1693728740167,32.87257847,1634.8,1634.7,8.052758]
[1693728740369,32.89539797,1634.8,1634.7,8.052758]
[1693728741371,32.89539797,1634.8,1634.7,8.522758]
[1693728742665,33.38658221,1634.8,1634.7,8.522758]
[1693728743669,34.28229921,1634.8,1634.7,8.522758]
[1693728744565,34.28229921,1634.8,1634.7,7.14049101]
[1693728744771,34.28229921,1634.8,1634.7,3.27868985]
[1693728744970,37.34130921,1634.8,1634.7,1.60174684]
[1693728745569,37.34130921,1634.8,1634.7,4.66092684]
[1693728746167,34.28229921,1634.8,1634.7,4.66092684]
[1693728746967,34.28229921,1634.8,1634.7,7.72010684]
[1693728747972,31.22328921,1634.8,1634.7,7.72010684]
[1693728748662,28.16427921,1634.8,1634.7,7.72010684]
[1693728749066,34.28225921,1634.8,1634.7,4.55568454]
[1693728749574,36.22716921,1634.8,1634.7,6.11836]
[1693728749866,33.16817921,1634.8,1634.7,6.11836]
[1693728751871,33.16817921,1634.8,1634.7,3.05918]
[1693728752274,33.16817921,1634.8,1634.7,6.11836]
[1693728753175,33.16817921,1634.8,1634.7,5.7415125]
[1693728753373,33.16817921,1634.8,1634.6,6.11849]
[1693728753573,12.4438381,1634.7,1634.6,6.11849]
[1693728753775,22.99413582,1634.7,1634.6,6.11849]
[1693728755278,23.01768947,1634.7,1634.6,6.11849]
[1693728757181,23.07888947,1634.7,1634.6,6.11849]
[1693728759378,10.0612,1634.6,1634.5,5.463788]
[1693728759682,20.3538,1634.6,1634.5,13.47153884]
[1693728759881,30.90409772,1634.6,1634.5,12.98353884]
[1693728760081,31.54324846,1634.6,1634.5,12.98353884]
[1693728760484,31.54324846,1634.6,1634.5,5.63533258]
[1693728760778,31.54324846,1634.6,1634.5,3.05955]
[1693728761171,31.54324846,1634.6,1634.5,2.53294416]
[1693728763482,31.54324846,1634.6,1634.5,3.05955]
[1693728764381,31.54324846,1634.6,1634.5,2.34257256]
[1693728765175,31.54324846,1634.6,1634.4,6.1193]
[1693728765384,1.9501381,1634.5,1634.4,6.1193]
[1693728765579,6.7572381,1634.5,1634.4,8.75493507]
[1693728766380,17.39480749,1634.5,1634.4,8.12054438]
[1693728766580,6.7572381,1634.5,1634.4,8.12054438]
[1693728766980,6.7572381,1634.5,1634.4,7.62449441]
[1693728770294,6.78079529,1634.5,1634.4,7.32449441]
[1693728770899,6.78079529,1634.5,1634.4,6.84870187]
[1693728771394,6.78079529,1634.5,1634.4,6.48870187]
[1693728774495,6.78079529,1634.5,1634.4,9.69077271]
[1693728775999,6.78079529,1634.5,1634.4,6.48870187]
[1693728776000,17.41836468,1634.5,1634.4,6.48870187]
[1693728776195,17.41836468,1634.5,1634.4,2.63563507]
[1693728777202,23.53746468,1634.5,1634.4,2.14963507]
[1693728777801,23.53746468,1634.5,1634.4,1.66963507]
[1693728778296,21.008,1634.4,1634.3,5.85198084]
[1693728778499,36.55396939,1634.4,1634.3,5.36191692]
[1693728778897,37.19319644,1634.4,1634.3,5.36191692]
[1693728779902,37.25439644,1634.4,1634.3,5.36191692]
[1693728780304,40.31413644,1634.4,1634.3,2.30200692]
[1693728780506,43.37387644,1634.4,1634.2,6.12013]
[1693728780702,23.28870749,1634.3,1634.2,3.06004]
[1693728781603,10.0,1634.2,1634.1,10.12243001]
[1693728781806,20.2943,1634.2,1634.1,13.18265001]
[1693728782003,30.93186939,1634.2,1634.1,13.18265001]
[1693728782707,30.93186939,1634.2,1634.1,10.12243001]
[1693728783103,30.93186939,1634.2,1634.1,9.72243001]
[1693728785310,30.95534949,1634.2,1634.1,9.72243001]
[1693728785509,30.95534949,1634.2,1634.1,6.66226001]
[1693728785809,30.95534949,1634.2,1634.1,2.66018]
[1693728786010,30.95534949,1634.2,1634.1,6.66226001]
[1693728786410,30.95534949,1634.2,1634.1,2.66018]
[1693728789616,30.95534949,1634.2,1634.1,2.54535635]
[1693728791222,30.95534949,1634.2,1634.1,2.07535635]
[1693728791919,30.95534949,1634.2,1633.9,6.12121]
[1693728791920,10.0,1634.0,1633.9,6.12121]
[1693728792112,15.504,1634.0,1633.9,9.18195]
[1693728792312,20.3984,1634.0,1633.9,9.18195]
[1693728792517,31.03596939,1634.0,1633.9,9.18195]
[1693728796321,31.03596939,1634.0,1633.9,7.76711567]
[1693728797424,31.09716939,1634.0,1633.9,6.12136]
[1693728798320,31.09716939,1634.0,1633.9,8.24170851]
[1693728798525,31.09716939,1634.0,1633.9,11.30238851]
[1693728800022,31.03596939,1634.0,1633.9,17.23023203]
[1693728800221,26.14156939,1634.0,1633.9,17.23023203]
[1693728800425,26.1650339,1634.0,1633.9,17.23023203]
[1693728801520,28.115172,1634.0,1633.9,14.36306851]
[1693728801824,28.115172,1634.0,1633.9,17.23023203]
[1693728802025,26.1650339,1634.0,1633.9,17.23023203]
[1693728802227,17.47760261,1634.0,1633.9,17.23023203]
[1693728802425,28.115172,1634.0,1633.9,17.23023203]
[1693728803120,26.64886535,1634.0,1633.9,17.23023203]
[1693728803518,28.59900345,1634.0,1633.9,17.23023203]
[1693728803720,28.59900345,1634.0,1633.9,14.36306851]
[1693728804017,28.59900345,1634.0,1633.9,17.23023203]
[1693728804421,28.59900345,1634.0,1633.9,14.36306851]
[1693728805923,3.28334299,1634.0,1633.9,21.23231204]
[1693728806128,5.504,1634.1,1633.9,21.23231204]
[1693728806320,5.504,1634.1,1634.0,4.39028499]
[1693728806524,5.504,1634.1,1634.0,16.63236499]
[1693728806825,10.3914,1634.1,1634.0,16.63236499]
[1693728808430,10.3914,1634.1,1634.0,19.83729555]
[1693728809224,5.504,1634.1,1634.0,19.83729555]
[1693728809429,6.00262811,1634.2,1634.0,20.634445]
[1693728809629,6.00262811,1634.2,1634.1,8.19241332]
[1693728809832,16.00262811,1634.2,1634.1,20.43373332]
[1693728810625,20.91472811,1634.2,1634.1,20.43373332]
[1693728814332,0.52120573,1634.2,1634.1,21.23091204]
[1693728814527,0.52120573,1634.2,1634.1,22.73283203]
[1693728818424,13.52488679,1634.6,1634.1,22.73283203]
[1693728818625,13.52488679,1634.6,1634.5,9.17874]
[1693728818932,10.2833,1634.6,1634.5,14.16625203]
[1693728819430,10.30412116,1634.6,1634.5,16.43618851]
[1693728819733,13.54570795,1634.6,1634.5,16.43618851]
[1693728819936,10.30412116,1634.6,1634.5,18.84000066]
[1693728820230,14.03040504,1634.6,1634.5,18.84000066]
[1693728822832,14.03040504,1634.6,1634.5,16.43618851]
[1693728824136,15.98054314,1634.6,1634.5,16.43618851]
[1693728824334,15.98054314,1634.6,1634.5,14.31584]
[1693728824633,15.98054314,1634.6,1634.5,16.14921985]
[1693728824933,15.98054314,1634.6,1634.5,16.14911089]
[1693728825430,16.04174314,1634.6,1634.5,16.14911089]
[1693728825631,16.04174314,1634.6,1634.5,11.01201089]
[1693728825833,16.04174314,1634.6,1634.5,9.17874]
[1693728826932,16.04174314,1634.6,1634.5,12.04590352]
[1693728827233,14.09160504,1634.6,1634.5,12.04590352]
[1693728827632,16.04174314,1634.6,1634.5,12.04590352]
[1693728828034,14.09160504,1634.6,1634.5,12.04590352]
[1693728830341,16.04174314,1634.6,1634.5,12.04590352]
[1693728830540,14.09160504,1634.6,1634.5,12.04590352]
[1693728830940,14.09160504,1634.6,1634.5,13.87859]
[1693728832733,14.09160504,1634.6,1634.5,12.04590352]
[1693728832933,14.09160504,1634.6,1634.5,13.87834215]
[1693728834543,14.09160504,1634.6,1634.5,12.04590352]
[1693728835944,5.28481825,1634.6,1634.5,25.6456543]
[1693728842054,4.8791,1634.7,1634.5,26.44669301]
[1693728842241,4.8791,1634.7,1634.6,25.04432364]
[1693728844157,5.35720812,1634.7,1634.6,25.04432364]
[1693728844352,5.37727856,1634.7,1634.6,25.04432364]
[1693728846956,5.37727856,1634.7,1634.6,21.84355242]
[1693728847749,5.37727856,1634.7,1634.6,25.04432364]
[1693728863055,7.32741666,1634.7,1634.6,25.04432364]
[1693728863468,7.32741666,1634.7,1634.6,22.77438716]
[1693728865168,7.32741666,1634.7,1634.6,22.53242825]
[1693728870369,7.38861666,1634.7,1634.6,22.53242825]
[1693728871870,7.38861666,1634.7,1634.6,17.02842825]
[1693728875275,5.43847856,1634.7,1634.6,17.02842825]
[1693728875473,7.38861666,1634.7,1634.6,17.02842825]
[1693728876677,7.38861666,1634.7,1634.6,17.82950303]
[1693728876970,7.38861666,1634.7,1634.6,17.03192536]
[1693728877377,7.38861666,1634.7,1634.6,13.82412914]
[1693728877770,7.38861666,1634.7,1634.6,17.82950303]
[1693728878678,7.38861666,1634.7,1634.6,20.69666655]
[1693728881078,7.38861666,1634.7,1634.6,17.82950303]
[1693728881281,7.38861666,1634.7,1634.6,12.2376]
[1693728881579,7.38861666,1634.7,1634.6,17.8393639]
[1693728881778,12.89261666,1634.7,1634.6,14.7799639]
[1693728881975,14.49514988,1634.7,1634.6,14.7799639]
[1693728882178,14.49514988,1634.7,1634.6,10.91907057]
[1693728882383,20.06112326,1634.7,1634.6,10.91907057]
[1693728882674,17.65732342,1634.7,1634.6,13.97851057]
[1693728885967,17.65732342,1634.7,1634.6,10.91907057]
[1693728887380,17.65732342,1634.7,1634.6,13.97850057]
[1693728887579,17.65732342,1634.7,1634.6,10.91907057]
[1693728889775,17.65732342,1634.7,1634.6,13.97850057]
[1693728891276,18.57534596,1634.7,1634.6,13.97850057]
[1693728892478,16.62520786,1634.7,1634.6,13.97850057]
[1693728892777,16.62520786,1634.7,1634.6,16.84566409]
[1693728893785,18.57534596,1634.7,1634.6,16.84566409]
[1693728894081,18.59570596,1634.7,1634.6,16.84566409]
[1693728894580,18.59570596,1634.7,1634.6,13.97850057]
[1693728898185,18.59570596,1634.7,1634.6,16.84566409]
[1693728898385,18.59570596,1634.7,1634.6,13.97850057]
[1693728899286,18.59570596,1634.7,1634.6,16.84566409]
[1693728899789,18.59570596,1634.7,1634.6,13.97850057]
[1693728904999,18.59570596,1634.7,1634.6,16.84566409]
[1693728905292,18.59570596,1634.7,1634.6,13.97850057]
[1693728905987,18.53450596,1634.7,1634.6,13.97850057]
[1693728907793,18.53450596,1634.7,1634.6,10.91907057]
[1693728909895,18.53450596,1634.7,1634.6,13.97850057]
[1693728910095,18.53450596,1634.7,1634.6,16.84566409]
[1693728910696,18.53450596,1634.7,1634.6,13.97850057]
[1693728912398,18.5345965,1634.7,1634.6,13.97850057]
[1693728915703,20.93839634,1634.7,1634.6,13.97850057]
[1693728916501,20.93839634,1634.7,1634.6,16.84566409]
[1693728917505,18.98825824,1634.7,1634.6,16.84566409]
[1693728917805,20.93839634,1634.7,1634.6,13.97850057]
[1693728918806,19.33586312,1634.7,1634.6,13.97850057]
[1693728919103,20.93915751,1634.7,1634.6,13.97850057]
[1693728919306,19.33586312,1634.7,1634.6,13.97850057]
[1693728923410,19.64195043,1634.7,1634.6,10.91907057]
[1693728924110,22.70115043,1634.7,1634.6,4.80027057]
[1693728924306,25.76035043,1634.7,1634.6,4.80027057]
[1693728924505,25.76035043,1634.7,1634.6,4.64871515]
[1693728924906,22.70115043,1634.7,1634.6,7.85966057]
[1693728925113,20.44321704,1634.7,1634.6,7.05792334]
[1693728925408,20.29735059,1634.7,1634.6,7.05782361]
[1693728925911,23.50241704,1634.7,1634.6,4.64871515]
[1693728926213,23.50241704,1634.7,1634.6,7.05797966]
[1693728926910,20.44321704,1634.7,1634.6,10.11736966]
[1693728931012,23.50241704,1634.7,1634.6,7.05797966]
[1693728931512,23.50950184,1634.7,1634.6,7.05797966]
[1693728932916,23.36363539,1634.7,1634.6,7.05797966]
[1693728933111,20.30443539,1634.7,1634.6,7.05797966]
[1693728933416,20.30443539,1634.7,1634.6,10.11736966]
[1693728934015,19.65075969,1634.7,1634.6,10.11736966]
[1693728934315,19.65075969,1634.7,1634.6,7.70810515]
[1693728934513,17.39453428,1634.7,1634.6,16.84560409]
[1693728935111,19.34467238,1634.7,1634.6,16.84560409]
[1693728935910,17.39453428,1634.7,1634.6,16.84560409]
[1693728936110,19.34467238,1634.7,1634.6,13.97844057]